[Event "Titled Tuesday Blitz April 25 Early 2023"]
[White "Djordjevic, Vuk"]
[Black "Sahib Singh"]
[WhiteFideId "902098"]
[BlackFideId "25618342"]
[WhiteElo "2452"]
[BlackElo "1934"]
[Result "1-0"]
[Round "07"]
[TimeControl "180+2"]
[Date "2023.04.25"]
[WhiteClock "0:00:22"]
[BlackClock "0:00:06"]

1. e4 {[%clk 0:03:00]}  e5 {[%clk 0:02:51]} 2. Nf3 {[%clk 0:03:00]}  Nc6 {[%clk 0:02:50]} 3. d4 {[%clk 0:03:01]}  exd4 {[%clk 0:02:49]} 4. Nxd4 {[%clk 0:03:02]}  Bc5 {[%clk 0:02:45]} 5. Nxc6 {[%clk 0:03:02]}  bxc6 {[%clk 0:02:45]} 6. Bd3 {[%clk 0:03:01]}  Ne7 {[%clk 0:02:42]} 7. Nc3 {[%clk 0:02:57]}  O-O {[%clk 0:02:41]} 8. Na4 {[%clk 0:02:55]}  Bb6 {[%clk 0:02:11]} 9. O-O {[%clk 0:02:51]}  d5 {[%clk 0:02:11]} 10. Nxb6 {[%clk 0:02:48]}  axb6 {[%clk 0:02:11]} 11. Bf4 {[%clk 0:02:29]}  Ng6 {[%clk 0:02:01]} 12. Bg3 {[%clk 0:02:26]}  d4 {[%clk 0:02:01]} 13. f4 {[%clk 0:02:23]}  f5 {[%clk 0:01:58]} 14. Qf3 {[%clk 0:02:02]}  Qd6 {[%clk 0:01:30]} 15. h4 {[%clk 0:01:51]}  Ne7 {[%clk 0:01:23]} 16. e5 {[%clk 0:01:27]}  Qb4 {[%clk 0:01:11]} 17. a3 {[%clk 0:01:22]}  Qxb2 {[%clk 0:01:03]} 18. Rfb1 {[%clk 0:01:22]}  Rxa3 {[%clk 0:00:29]} 19. Rxb2 {[%clk 0:01:17]}  Rxa1+ {[%clk 0:00:29]} 20. Kh2 {[%clk 0:01:15]}  Be6 {[%clk 0:00:30]} 21. h5 {[%clk 0:01:10]}  Bd5 {[%clk 0:00:30]} 22. Qe2 {[%clk 0:01:10]}  Ra4 {[%clk 0:00:28]} 23. Bh4 {[%clk 0:01:09]}  Nc8 {[%clk 0:00:28]} 24. e6 {[%clk 0:01:08]}  Re8 {[%clk 0:00:21]} 25. Bxf5 {[%clk 0:01:06]}  Nd6 {[%clk 0:00:21]} 26. Bh3 {[%clk 0:01:06]}  d3 {[%clk 0:00:14]} 27. cxd3 {[%clk 0:01:04]}  Rxf4 {[%clk 0:00:15]} 28. Bg3 {[%clk 0:01:04]}  Rf6 {[%clk 0:00:15]} 29. Bxd6 {[%clk 0:00:55]}  cxd6 {[%clk 0:00:16]} 30. Rxb6 {[%clk 0:00:55]}  Bxe6 {[%clk 0:00:17]} 31. Rxc6 {[%clk 0:00:44]}  Bf7 {[%clk 0:00:17]} 32. Rc8 {[%clk 0:00:41]}  Rxc8 {[%clk 0:00:09]} 33. Bxc8 {[%clk 0:00:42]}  h6 {[%clk 0:00:08]} 34. Bg4 {[%clk 0:00:41]}  Kh7 {[%clk 0:00:09]} 35. Qe4+ {[%clk 0:00:41]}  Kh8 {[%clk 0:00:09]} 36. Bf5 {[%clk 0:00:40]}  Bg8 {[%clk 0:00:10]} 37. Bg6 {[%clk 0:00:39]}  d5 {[%clk 0:00:11]} 38. Qe8 {[%clk 0:00:39]}  d4 {[%clk 0:00:10]} 39. Be4 {[%clk 0:00:26]}  Rf4 {[%clk 0:00:09]} 40. Bd5 {[%clk 0:00:22]}  Rf7 {[%clk 0:00:06]} 41. Bxf7 {[%clk 0:00:22]} 1-0


[Site "https://www.chess.com"]

[Event "Titled Tuesday Blitz April 25 Early 2023"]
[White "Gontcharov, Vladislav"]
[Black "Ashraf, Artin"]
[WhiteFideId "4123492"]
[BlackFideId "22514805"]
[WhiteElo "2420"]
[BlackElo "2188"]
[Result "1-0"]
[Round "07"]
[TimeControl "180+2"]
[Date "2023.04.25"]
[WhiteClock "0:00:11"]
[BlackClock "0:00:02"]

1. e4 {[%clk 0:03:00]}  e5 {[%clk 0:02:59]} 2. Nf3 {[%clk 0:03:00]}  Nc6 {[%clk 0:02:59]} 3. Bb5 {[%clk 0:03:00]}  a6 {[%clk 0:02:59]} 4. Ba4 {[%clk 0:02:59]}  Nf6 {[%clk 0:02:58]} 5. d3 {[%clk 0:02:59]}  b5 {[%clk 0:02:56]} 6. Bb3 {[%clk 0:02:58]}  Be7 {[%clk 0:02:56]} 7. O-O {[%clk 0:02:58]}  O-O {[%clk 0:02:55]} 8. Re1 {[%clk 0:02:58]}  d6 {[%clk 0:02:55]} 9. c3 {[%clk 0:02:57]}  Na5 {[%clk 0:02:44]} 10. Bc2 {[%clk 0:02:56]}  c5 {[%clk 0:02:43]} 11. Nbd2 {[%clk 0:02:53]}  Bb7 {[%clk 0:02:41]} 12. Nf1 {[%clk 0:02:52]}  Qc7 {[%clk 0:02:41]} 13. Ng3 {[%clk 0:02:52]}  Rfe8 {[%clk 0:02:40]} 14. h3 {[%clk 0:02:48]}  Bf8 {[%clk 0:02:37]} 15. Bg5 {[%clk 0:02:44]}  Nd7 {[%clk 0:02:36]} 16. Nf5 {[%clk 0:02:32]}  g6 {[%clk 0:02:24]} 17. Ne3 {[%clk 0:02:29]}  Bg7 {[%clk 0:02:19]} 18. b4 {[%clk 0:01:56]}  cxb4 {[%clk 0:02:03]} 19. cxb4 {[%clk 0:01:56]}  Nc6 {[%clk 0:02:04]} 20. Nd5 {[%clk 0:01:56]}  Qb8 {[%clk 0:02:03]} 21. Bb3 {[%clk 0:01:53]}  Nd8 {[%clk 0:01:53]} 22. Rc1 {[%clk 0:01:39]}  Ne6 {[%clk 0:01:52]} 23. Bh4 {[%clk 0:01:03]}  Ra7 {[%clk 0:01:41]} 24. Re2 {[%clk 0:01:00]}  Ba8 {[%clk 0:01:38]} 25. Ne7+ {[%clk 0:00:49]}  Kf8 {[%clk 0:01:31]} 26. Rec2 {[%clk 0:00:47]}  Bf6 {[%clk 0:01:13]} 27. Rc8 {[%clk 0:00:37]}  Qb7 {[%clk 0:00:45]} 28. Rxe8+ {[%clk 0:00:35]}  Kxe8 {[%clk 0:00:45]} 29. Bxf6 {[%clk 0:00:35]}  Nxf6 {[%clk 0:00:45]} 30. Nc8 {[%clk 0:00:33]}  Qb8 {[%clk 0:00:44]} 31. Nxa7 {[%clk 0:00:32]}  Qxa7 {[%clk 0:00:44]} 32. Qc2 {[%clk 0:00:32]}  Nd8 {[%clk 0:00:15]} 33. Qc7 {[%clk 0:00:29]}  Qxc7 {[%clk 0:00:10]} 34. Rxc7 {[%clk 0:00:28]}  Nd7 {[%clk 0:00:11]} 35. Ng5 {[%clk 0:00:26]}  f6 {[%clk 0:00:09]} 36. Nxh7 {[%clk 0:00:23]}  Bb7 {[%clk 0:00:07]} 37. g4 {[%clk 0:00:19]}  g5 {[%clk 0:00:07]} 38. Kh2 {[%clk 0:00:18]}  Bc6 {[%clk 0:00:04]} 39. Kg3 {[%clk 0:00:17]}  Bb7 {[%clk 0:00:02]} 40. Bd5 {[%clk 0:00:16]}  Bxd5 {[%clk 0:00:02]} 41. exd5 {[%clk 0:00:16]}  Nf7 {[%clk 0:00:02]} 42. h4 {[%clk 0:00:14]}  gxh4+ {[%clk 0:00:02]} 43. Kxh4 {[%clk 0:00:14]}  Nh8 {[%clk 0:00:03]} 44. Kh5 {[%clk 0:00:14]}  Nf7 {[%clk 0:00:01]} 45. Kg6 {[%clk 0:00:13]}  Nh8+ {[%clk 0:00:02]} 46. Kf5 {[%clk 0:00:13]}  Nf7 {[%clk 0:00:01]} 47. Rc8+ {[%clk 0:00:13]}  Ke7 {[%clk 0:00:01]} 48. g5 {[%clk 0:00:11]}  Nh6+ {[%clk 0:00:02]} 49. gxh6 {[%clk 0:00:11]} 1-0


[Site "https://www.chess.com"]

[Event "Titled Tuesday Blitz April 25 Early 2023"]
[White "Liu, Xiangyi"]
[Black "Elgersma, Onno"]
[WhiteFideId "8605718"]
[BlackFideId "1053531"]
[WhiteElo "2323"]
[BlackElo "2252"]
[Result "1-0"]
[Round "07"]
[TimeControl "180+2"]
[Date "2023.04.25"]
[WhiteClock "0:00:20"]
[BlackClock "0:00:10"]

1. Nf3 {[%clk 0:03:00]}  Nf6 {[%clk 0:02:53]} 2. g3 {[%clk 0:03:01]}  d5 {[%clk 0:02:54]} 3. Bg2 {[%clk 0:03:01]}  e6 {[%clk 0:02:55]} 4. O-O {[%clk 0:03:01]}  Be7 {[%clk 0:02:55]} 5. d3 {[%clk 0:03:02]}  O-O {[%clk 0:02:56]} 6. Nbd2 {[%clk 0:03:03]}  c5 {[%clk 0:02:56]} 7. e4 {[%clk 0:03:03]}  Nc6 {[%clk 0:02:57]} 8. e5 {[%clk 0:03:03]}  Nd7 {[%clk 0:02:57]} 9. Re1 {[%clk 0:03:04]}  Qc7 {[%clk 0:02:58]} 10. Qe2 {[%clk 0:03:04]}  b5 {[%clk 0:02:58]} 11. h4 {[%clk 0:03:05]}  Bb7 {[%clk 0:02:59]} 12. h5 {[%clk 0:03:05]}  Rfc8 {[%clk 0:02:59]} 13. h6 {[%clk 0:03:06]}  g6 {[%clk 0:02:59]} 14. c3 {[%clk 0:02:59]}  b4 {[%clk 0:02:59]} 15. c4 {[%clk 0:02:59]}  Nb6 {[%clk 0:02:53]} 16. b3 {[%clk 0:02:56]}  a5 {[%clk 0:02:54]} 17. Rb1 {[%clk 0:02:31]}  a4 {[%clk 0:02:53]} 18. Nf1 {[%clk 0:02:30]}  axb3 {[%clk 0:02:50]} 19. axb3 {[%clk 0:02:31]}  Ra7 {[%clk 0:02:35]} 20. N1h2 {[%clk 0:02:10]}  Rca8 {[%clk 0:02:34]} 21. Ng4 {[%clk 0:02:10]}  Ra2 {[%clk 0:02:34]} 22. Qd1 {[%clk 0:02:10]}  Rd8 {[%clk 0:02:27]} 23. Re2 {[%clk 0:02:01]}  Ra5 {[%clk 0:02:11]} 24. cxd5 {[%clk 0:01:04]}  Nxd5 {[%clk 0:02:09]} 25. Bb2 {[%clk 0:01:04]}  Ra2 {[%clk 0:02:03]} 26. Rc2 {[%clk 0:01:01]}  Qd7 {[%clk 0:01:45]} 27. Ra1 {[%clk 0:00:55]}  Rda8 {[%clk 0:01:41]} 28. Rxa2 {[%clk 0:00:49]}  Rxa2 {[%clk 0:01:42]} 29. Nf6+ {[%clk 0:00:44]}  Bxf6 {[%clk 0:01:37]} 30. exf6 {[%clk 0:00:44]}  Qd8 {[%clk 0:00:54]} 31. Qb1 {[%clk 0:00:36]}  Qa5 {[%clk 0:00:44]} 32. Kh2 {[%clk 0:00:33]}  Nc3 {[%clk 0:00:35]} 33. Qc1 {[%clk 0:00:33]}  Nd4 {[%clk 0:00:29]} 34. Nxd4 {[%clk 0:00:27]}  cxd4 {[%clk 0:00:30]} 35. Bxb7 {[%clk 0:00:26]}  Qh5+ {[%clk 0:00:10]} 36. Kg2 {[%clk 0:00:26]}  Qe5 {[%clk 0:00:11]} 37. Bxc3 {[%clk 0:00:20]}  Rxc2 {[%clk 0:00:11]} 38. Qxc2 {[%clk 0:00:20]}  dxc3 {[%clk 0:00:09]} 39. Qa2 {[%clk 0:00:20]}  Qb8 {[%clk 0:00:09]} 40. Be4 {[%clk 0:00:20]}  Kf8 {[%clk 0:00:08]} 41. d4 {[%clk 0:00:20]}  Qd8 {[%clk 0:00:08]} 42. Qa4 {[%clk 0:00:17]}  Qxf6 {[%clk 0:00:07]} 43. Qxb4+ {[%clk 0:00:17]}  Qe7 {[%clk 0:00:07]} 44. Qxc3 {[%clk 0:00:18]}  f5 {[%clk 0:00:07]} 45. Bf3 {[%clk 0:00:18]}  Qd6 {[%clk 0:00:08]} 46. Qe3 {[%clk 0:00:18]}  Kf7 {[%clk 0:00:08]} 47. Qe5 {[%clk 0:00:18]}  Qb6 {[%clk 0:00:08]} 48. Qg7+ {[%clk 0:00:19]}  Ke8 {[%clk 0:00:09]} 49. Qxh7 {[%clk 0:00:19]}  Qxb3 {[%clk 0:00:10]} 50. Qxg6+ {[%clk 0:00:20]} 1-0


[Site "https://www.chess.com"]

[Event "Titled Tuesday Blitz April 25 Early 2023"]
[White "Cherniaiev, Tykhon"]
[Black "Rodchenkov, Sergey D."]
[WhiteFideId "14182360"]
[BlackFideId "4168712"]
[WhiteElo "2450"]
[BlackElo "2277"]
[Result "1-0"]
[Round "07"]
[TimeControl "180+2"]
[Date "2023.04.25"]
[WhiteClock "0:00:13"]
[BlackClock "0:00:53"]

1. Nf3 {[%clk 0:03:00]}  d5 {[%clk 0:02:59]} 2. d4 {[%clk 0:03:01]}  Nf6 {[%clk 0:02:59]} 3. c4 {[%clk 0:03:02]}  dxc4 {[%clk 0:03:00]} 4. e3 {[%clk 0:03:02]}  e6 {[%clk 0:03:01]} 5. Bxc4 {[%clk 0:03:02]}  c5 {[%clk 0:03:01]} 6. O-O {[%clk 0:03:02]}  a6 {[%clk 0:03:02]} 7. a4 {[%clk 0:03:03]}  Nc6 {[%clk 0:03:02]} 8. Nc3 {[%clk 0:03:03]}  Qc7 {[%clk 0:03:01]} 9. h3 {[%clk 0:02:57]}  Be7 {[%clk 0:03:01]} 10. b3 {[%clk 0:02:56]}  O-O {[%clk 0:03:00]} 11. Bb2 {[%clk 0:02:56]}  Rd8 {[%clk 0:02:54]} 12. Rc1 {[%clk 0:02:51]}  b6 {[%clk 0:02:34]} 13. Qe2 {[%clk 0:02:47]}  Bb7 {[%clk 0:02:32]} 14. Rfd1 {[%clk 0:02:46]}  Na5 {[%clk 0:02:31]} 15. dxc5 {[%clk 0:02:32]}  Bxc5 {[%clk 0:02:32]} 16. Na2 {[%clk 0:02:21]}  Rxd1+ {[%clk 0:02:30]} 17. Qxd1 {[%clk 0:02:13]}  Nxc4 {[%clk 0:02:30]} 18. Rxc4 {[%clk 0:02:12]}  Rd8 {[%clk 0:02:20]} 19. Qc2 {[%clk 0:01:21]}  Bxf3 {[%clk 0:02:01]} 20. gxf3 {[%clk 0:01:21]}  Qb7 {[%clk 0:02:02]} 21. Kg2 {[%clk 0:01:14]}  Nd5 {[%clk 0:01:36]} 22. Qe4 {[%clk 0:00:35]}  Nxe3+ {[%clk 0:01:35]} 23. fxe3 {[%clk 0:00:29]}  Qxe4 {[%clk 0:01:34]} 24. fxe4 {[%clk 0:00:27]}  Rd2+ {[%clk 0:01:34]} 25. Kf3 {[%clk 0:00:27]}  Rxb2 {[%clk 0:01:35]} 26. a5 {[%clk 0:00:21]}  g6 {[%clk 0:01:20]} 27. b4 {[%clk 0:00:15]}  Rxa2 {[%clk 0:00:54]} 28. bxc5 {[%clk 0:00:13]}  Kg7 {[%clk 0:00:55]} 29. axb6 {[%clk 0:00:13]}  Rb2 {[%clk 0:00:53]} 30. c6 {[%clk 0:00:13]} 1-0


[Site "https://www.chess.com"]

[Event "Titled Tuesday Blitz April 25 Early 2023"]
[White "Shuvalova, Polina"]
[Black "Estrada Nieto, Julian"]
[WhiteFideId "24171760"]
[BlackFideId "5101018"]
[WhiteElo "2281"]
[BlackElo "2161"]
[Result "1-0"]
[Round "07"]
[TimeControl "180+2"]
[Date "2023.04.25"]
[WhiteClock "0:00:28"]
[BlackClock "0:00:06"]

1. e4 {[%clk 0:03:00]}  e5 {[%clk 0:02:57]} 2. Nf3 {[%clk 0:03:00]}  Nc6 {[%clk 0:02:54]} 3. Bb5 {[%clk 0:03:00]}  a6 {[%clk 0:02:52]} 4. Ba4 {[%clk 0:02:59]}  Nf6 {[%clk 0:02:53]} 5. Nc3 {[%clk 0:02:56]}  b5 {[%clk 0:02:44]} 6. Bb3 {[%clk 0:02:56]}  Be7 {[%clk 0:02:44]} 7. d3 {[%clk 0:02:54]}  d6 {[%clk 0:02:44]} 8. a3 {[%clk 0:02:54]}  O-O {[%clk 0:02:44]} 9. h3 {[%clk 0:02:51]}  Na5 {[%clk 0:02:41]} 10. Ba2 {[%clk 0:02:51]}  c5 {[%clk 0:02:42]} 11. Bg5 {[%clk 0:02:49]}  Be6 {[%clk 0:02:39]} 12. Bxf6 {[%clk 0:02:44]}  Bxf6 {[%clk 0:02:39]} 13. Bd5 {[%clk 0:02:45]}  Rc8 {[%clk 0:02:36]} 14. O-O {[%clk 0:02:43]}  Nc6 {[%clk 0:02:28]} 15. Re1 {[%clk 0:02:26]}  b4 {[%clk 0:02:22]} 16. axb4 {[%clk 0:02:21]}  cxb4 {[%clk 0:02:20]} 17. Ne2 {[%clk 0:02:16]}  a5 {[%clk 0:02:08]} 18. c4 {[%clk 0:02:06]}  bxc3 {[%clk 0:01:42]} 19. bxc3 {[%clk 0:02:05]}  Bxd5 {[%clk 0:01:38]} 20. exd5 {[%clk 0:02:05]}  Ne7 {[%clk 0:01:38]} 21. Qb3 {[%clk 0:01:53]}  Rc5 {[%clk 0:01:32]} 22. c4 {[%clk 0:01:35]}  e4 {[%clk 0:01:28]} 23. Nfd4 {[%clk 0:01:27]}  exd3 {[%clk 0:01:00]} 24. Qxd3 {[%clk 0:01:25]}  Qc8 {[%clk 0:00:44]} 25. Rec1 {[%clk 0:01:14]}  Bxd4 {[%clk 0:00:35]} 26. Nxd4 {[%clk 0:01:13]}  Nxd5 {[%clk 0:00:25]} 27. Nf5 {[%clk 0:01:04]}  Nb4 {[%clk 0:00:20]} 28. Ne7+ {[%clk 0:00:54]}  Kh8 {[%clk 0:00:20]} 29. Qxd6 {[%clk 0:00:54]}  Qc7 {[%clk 0:00:07]} 30. Ng6+ {[%clk 0:00:54]}  hxg6 {[%clk 0:00:07]} 31. Qxf8+ {[%clk 0:00:55]}  Kh7 {[%clk 0:00:07]} 32. Qe8 {[%clk 0:00:33]}  Rxc4 {[%clk 0:00:06]} 33. Rxc4 {[%clk 0:00:32]}  Qxc4 {[%clk 0:00:06]} 34. Qa4 {[%clk 0:00:28]} 1-0


[Site "https://www.chess.com"]

[Event "Titled Tuesday Blitz April 25 Early 2023"]
[White "Mrudul Dehankar"]
[Black "Karthik Rajaa"]
[WhiteFideId "25096990"]
[BlackFideId "25035215"]
[WhiteElo "2139"]
[BlackElo "2215"]
[Result "0-1"]
[Round "07"]
[TimeControl "180+2"]
[Date "2023.04.25"]
[WhiteClock "0:00:04"]
[BlackClock "0:00:10"]

1. e4 {[%clk 0:02:58]}  c6 {[%clk 0:03:00]} 2. d4 {[%clk 0:02:58]}  d5 {[%clk 0:03:00]} 3. e5 {[%clk 0:02:58]}  c5 {[%clk 0:03:00]} 4. Nf3 {[%clk 0:02:57]}  cxd4 {[%clk 0:03:00]} 5. Nxd4 {[%clk 0:02:57]}  Nc6 {[%clk 0:03:01]} 6. Nxc6 {[%clk 0:02:48]}  bxc6 {[%clk 0:03:02]} 7. Bd3 {[%clk 0:02:47]}  e6 {[%clk 0:03:02]} 8. O-O {[%clk 0:02:46]}  Ne7 {[%clk 0:03:02]} 9. c4 {[%clk 0:02:38]}  Ng6 {[%clk 0:02:55]} 10. Qe2 {[%clk 0:02:38]}  Be7 {[%clk 0:02:53]} 11. Nd2 {[%clk 0:02:35]}  Ba6 {[%clk 0:02:50]} 12. Nf3 {[%clk 0:02:34]}  O-O {[%clk 0:02:43]} 13. Rd1 {[%clk 0:02:33]}  Rb8 {[%clk 0:02:33]} 14. g3 {[%clk 0:02:27]}  Qa5 {[%clk 0:02:19]} 15. Bd2 {[%clk 0:02:17]}  Qb6 {[%clk 0:02:14]} 16. b3 {[%clk 0:02:17]}  Bc5 {[%clk 0:02:07]} 17. Rac1 {[%clk 0:02:11]}  Rfd8 {[%clk 0:02:05]} 18. h4 {[%clk 0:02:08]}  h6 {[%clk 0:01:56]} 19. h5 {[%clk 0:02:06]}  Nf8 {[%clk 0:01:54]} 20. Kg2 {[%clk 0:01:26]}  Rd7 {[%clk 0:01:42]} 21. b4 {[%clk 0:01:05]}  Be7 {[%clk 0:01:35]} 22. c5 {[%clk 0:00:57]}  Bxd3 {[%clk 0:01:35]} 23. Qxd3 {[%clk 0:00:58]}  Qc7 {[%clk 0:01:06]} 24. Qd4 {[%clk 0:00:48]}  Rdd8 {[%clk 0:00:56]} 25. Re1 {[%clk 0:00:42]}  Qb7 {[%clk 0:00:55]} 26. Qg4 {[%clk 0:00:41]}  Kh8 {[%clk 0:00:52]} 27. Nd4 {[%clk 0:00:41]}  Rdc8 {[%clk 0:00:51]} 28. Qf3 {[%clk 0:00:25]}  Kg8 {[%clk 0:00:51]} 29. Qg4 {[%clk 0:00:21]}  Kh8 {[%clk 0:00:51]} 30. a3 {[%clk 0:00:21]}  Nh7 {[%clk 0:00:49]} 31. Rc3 {[%clk 0:00:14]}  Bg5 {[%clk 0:00:40]} 32. f4 {[%clk 0:00:11]}  Be7 {[%clk 0:00:39]} 33. Rf3 {[%clk 0:00:12]}  Qd7 {[%clk 0:00:30]} 34. Ref1 {[%clk 0:00:10]}  Rf8 {[%clk 0:00:22]} 35. f5 {[%clk 0:00:10]}  exf5 {[%clk 0:00:22]} 36. Nxf5 {[%clk 0:00:10]}  Bg5 {[%clk 0:00:19]} 37. Bc3 {[%clk 0:00:09]}  Qe6 {[%clk 0:00:17]} 38. Qd4 {[%clk 0:00:06]}  Be7 {[%clk 0:00:09]} 39. Qd3 {[%clk 0:00:06]}  Ng5 {[%clk 0:00:09]} 40. Nd4 {[%clk 0:00:05]}  Qg4 {[%clk 0:00:07]} 41. Rf4 {[%clk 0:00:04]}  Qxh5 {[%clk 0:00:07]} 42. Nf5 {[%clk 0:00:05]}  Qh3+ {[%clk 0:00:07]} 43. Kg1 {[%clk 0:00:04]}  Rfe8 {[%clk 0:00:06]} 44. Rh4 {[%clk 0:00:04]}  Qxh4 {[%clk 0:00:04]} 45. Nxh4 {[%clk 0:00:04]}  Ne4 {[%clk 0:00:05]} 46. Nf5 {[%clk 0:00:04]}  Bf8 {[%clk 0:00:05]} 47. Bd4 {[%clk 0:00:02]}  Re6 {[%clk 0:00:05]} 48. Qf3 {[%clk 0:00:03]}  Nd2 {[%clk 0:00:04]} 49. Qf4 {[%clk 0:00:02]}  Nxf1 {[%clk 0:00:04]} 50. Kxf1 {[%clk 0:00:03]}  Kg8 {[%clk 0:00:05]} 51. Kg2 {[%clk 0:00:03]}  a5 {[%clk 0:00:04]} 52. Nd6 {[%clk 0:00:03]}  axb4 {[%clk 0:00:05]} 53. Qxf7+ {[%clk 0:00:03]}  Kh8 {[%clk 0:00:06]} 54. Qxe6 {[%clk 0:00:04]}  bxa3 {[%clk 0:00:06]} 55. Nf7+ {[%clk 0:00:04]}  Kh7 {[%clk 0:00:07]} 56. Qf5+ {[%clk 0:00:04]}  Kg8 {[%clk 0:00:07]} 57. Qg6 {[%clk 0:00:04]}  a2 {[%clk 0:00:07]} 58. Nxh6+ {[%clk 0:00:04]}  Kh8 {[%clk 0:00:07]} 59. Nf7+ {[%clk 0:00:03]}  Kg8 {[%clk 0:00:08]} 60. Ng5 {[%clk 0:00:03]}  Bxc5 {[%clk 0:00:06]} 61. Qh7+ {[%clk 0:00:03]}  Kf8 {[%clk 0:00:06]} 62. Bxc5+ {[%clk 0:00:04]}  Ke8 {[%clk 0:00:06]} 63. Qg8+ {[%clk 0:00:04]}  Kd7 {[%clk 0:00:07]} 64. Qe6+ {[%clk 0:00:05]}  Kc7 {[%clk 0:00:07]} 65. Qe7+ {[%clk 0:00:05]}  Kc8 {[%clk 0:00:07]} 66. Bd4 {[%clk 0:00:03]}  Rb2+ {[%clk 0:00:08]} 67. Bxb2 {[%clk 0:00:02]}  c5 {[%clk 0:00:09]} 68. Qxc5+ {[%clk 0:00:02]}  Kb8 {[%clk 0:00:10]} 69. Qxd5 {[%clk 0:00:02]}  a1=Q {[%clk 0:00:10]} 70. Qa2 {[%clk 0:00:03]}  Qxa2 {[%clk 0:00:10]} 71. e6 {[%clk 0:00:03]}  Qxb2+ {[%clk 0:00:10]} 72. Kh3 {[%clk 0:00:04]}  Qf6 {[%clk 0:00:11]} 73. Kg4 {[%clk 0:00:04]}  Kc7 {[%clk 0:00:12]} 74. Kh5 {[%clk 0:00:03]}  Kd8 {[%clk 0:00:10]} 75. Kg4 {[%clk 0:00:03]}  Ke7 {[%clk 0:00:10]} 76. Kh5 {[%clk 0:00:04]}  Qf5 {[%clk 0:00:11]} 77. Kh4 {[%clk 0:00:04]}  Kf6 {[%clk 0:00:10]} 0-1


[Site "https://www.chess.com"]

[Event "Titled Tuesday Blitz April 25 Early 2023"]
[White "Javakhadze, Zurab"]
[Black "Koridze, Lile"]
[WhiteFideId "13603647"]
[BlackFideId "13612514"]
[WhiteElo "2381"]
[BlackElo "2047"]
[Result "1-0"]
[Round "07"]
[TimeControl "180+2"]
[Date "2023.04.25"]
[WhiteClock "0:00:04"]
[BlackClock "0:00:13"]

1. Nf3 {[%clk 0:03:00]}  Nf6 {[%clk 0:02:57]} 2. g3 {[%clk 0:03:00]}  b5 {[%clk 0:02:57]} 3. Bg2 {[%clk 0:02:59]}  Bb7 {[%clk 0:02:56]} 4. O-O {[%clk 0:03:00]}  e6 {[%clk 0:02:55]} 5. d4 {[%clk 0:02:56]}  c5 {[%clk 0:02:53]} 6. e3 {[%clk 0:02:56]}  Be7 {[%clk 0:02:53]} 7. Qe2 {[%clk 0:02:55]}  a6 {[%clk 0:02:52]} 8. b3 {[%clk 0:02:52]}  O-O {[%clk 0:02:52]} 9. Bb2 {[%clk 0:02:53]}  Nc6 {[%clk 0:02:51]} 10. c4 {[%clk 0:02:44]}  d5 {[%clk 0:02:49]} 11. cxd5 {[%clk 0:02:41]}  Nxd5 {[%clk 0:02:48]} 12. e4 {[%clk 0:02:31]}  Nf6 {[%clk 0:02:46]} 13. dxc5 {[%clk 0:02:29]}  Bxc5 {[%clk 0:02:46]} 14. e5 {[%clk 0:02:10]}  Nd5 {[%clk 0:02:42]} 15. Nbd2 {[%clk 0:02:10]}  Bb6 {[%clk 0:02:38]} 16. Ne4 {[%clk 0:02:08]}  Qe7 {[%clk 0:02:37]} 17. Nd6 {[%clk 0:01:54]}  Bc5 {[%clk 0:02:34]} 18. Nxb7 {[%clk 0:01:51]}  Qxb7 {[%clk 0:02:34]} 19. h4 {[%clk 0:01:43]}  Rfd8 {[%clk 0:02:24]} 20. Ng5 {[%clk 0:01:39]}  h6 {[%clk 0:02:21]} 21. Ne4 {[%clk 0:01:29]}  Bd4 {[%clk 0:02:18]} 22. Bxd4 {[%clk 0:01:21]}  Nxd4 {[%clk 0:02:18]} 23. Qg4 {[%clk 0:01:22]}  Nf5 {[%clk 0:01:54]} 24. Nf6+ {[%clk 0:01:10]}  Kh8 {[%clk 0:01:53]} 25. Nxd5 {[%clk 0:01:04]}  Rxd5 {[%clk 0:01:53]} 26. Rad1 {[%clk 0:00:55]}  Rad8 {[%clk 0:01:47]} 27. Rxd5 {[%clk 0:00:49]}  Rxd5 {[%clk 0:01:44]} 28. Qb4 {[%clk 0:00:43]}  Qd7 {[%clk 0:01:34]} 29. Bxd5 {[%clk 0:00:38]}  Qxd5 {[%clk 0:01:24]} 30. Qf8+ {[%clk 0:00:26]}  Kh7 {[%clk 0:01:19]} 31. Qxf7 {[%clk 0:00:27]}  Qxe5 {[%clk 0:01:18]} 32. h5 {[%clk 0:00:24]}  Nd4 {[%clk 0:01:16]} 33. Rd1 {[%clk 0:00:19]}  Qd5 {[%clk 0:01:06]} 34. Qg6+ {[%clk 0:00:15]}  Kh8 {[%clk 0:01:06]} 35. Qd3 {[%clk 0:00:14]}  Nf3+ {[%clk 0:00:58]} 36. Kf1 {[%clk 0:00:13]}  Qxh5 {[%clk 0:00:58]} 37. Qd8+ {[%clk 0:00:06]}  Kh7 {[%clk 0:00:58]} 38. Qd3+ {[%clk 0:00:07]}  Kh8 {[%clk 0:00:58]} 39. Kg2 {[%clk 0:00:06]}  Ng5 {[%clk 0:00:54]} 40. Qd8+ {[%clk 0:00:06]}  Kh7 {[%clk 0:00:54]} 41. Qd3+ {[%clk 0:00:06]}  Kh8 {[%clk 0:00:54]} 42. Re1 {[%clk 0:00:05]}  Qh3+ {[%clk 0:00:53]} 43. Kg1 {[%clk 0:00:06]}  Qg4 {[%clk 0:00:52]} 44. Rc1 {[%clk 0:00:06]}  e5 {[%clk 0:00:47]} 45. Qd8+ {[%clk 0:00:05]}  Kh7 {[%clk 0:00:47]} 46. Rc8 {[%clk 0:00:03]}  Nh3+ {[%clk 0:00:16]} 47. Kf1 {[%clk 0:00:03]}  Qf3 {[%clk 0:00:13]} 48. Qg8+ {[%clk 0:00:02]}  Kg6 {[%clk 0:00:13]} 49. Qe6+ {[%clk 0:00:02]}  Kh7 {[%clk 0:00:12]} 50. Qxh3 {[%clk 0:00:03]}  Qd1+ {[%clk 0:00:13]} 51. Kg2 {[%clk 0:00:03]}  Qd5+ {[%clk 0:00:12]} 52. Kh2 {[%clk 0:00:04]}  Qd2 {[%clk 0:00:12]} 53. Qf5+ {[%clk 0:00:04]}  g6 {[%clk 0:00:13]} 54. Qf7# {[%clk 0:00:04]} 1-0


[Site "https://www.chess.com"]